Workbook

Sheet Main
A1: =IF(Sheet2!S1=1,Sheet2!Q1,Sheet2!Q2) -> Slab Flexural Strength
A3: Material Properties
A4: fc'= | B4: =Sheet2!F3 -> 28 | C4: N/mm2 | F4: b= | G4: =LOOKUP(B4,Sheet2!A2:A50,Sheet2!B2:B50) -> 0.85 | N4: ACI 318M-08 10.2.7.3
A5: Fy= | B5: =Sheet2!J3 -> 420 | C5: N/mm2
A7: Cross Section Properties
A8: b= | B8: 1000 | C8: mm
A9: t= | B9: 500 | C9: mm
A10: Cover= | B10: 50 | C10: mm | F10: Effective depth (d)= | G10: =B9-B10 -> 450 | H10: mm | I10: (Depth to the center of reinforcing steel)
A12: Reinforcement Data
A13: 5 | B13: T | C13: 16 | E13: Area Steel Used= | F13: =A13*PI()*C13*C13/4 -> 1005.309649 | G13: mm2, | H13: r= | I13: =IF(Sheet2!S1=1,F13/B8/G10,Main!F13/Main!B8/Main!B9) -> 0.002010619298 | J13: =IF(I13>I14,"Exceeds max. value",IF(I13<I15,"Less than min.","")) ->  | M13: w= | N13: =I13*B5/B4 -> 0.03015928947
H14: rmax= | I14: =0.85*G4*B4/B5*(1-B5/(600+B5))*0.75 -> 0.02125 | N14: ACI 318M-08 10.3.5
H15: rmin= | I15: =IF(Sheet2!S1=1,MIN(1.3*F13,MAX(0.25*B4^0.5/B5,1.4/B5)),0.0018*420/Main!B5) -> 0.0018 | N15: ACI 318M-08 10.5.1
A16: Section Flexural Strength | H16: Flexural reduction factor f= | I16: 0.9 | N16: ACI 318M-08 9.3.2.1
A17: a= | B17: =I13*G10*B5/G4/B4 -> 15.96668266 | C17: mm
A18: fMn= | B18: =I16*B4*B8*G10*G10*N13*(1-0.59*N13)/1000000 -> 151.1643098 | C18: KN.m | N18: ACI 318M-08 10.2
A20: More Reinforcement Options and Relevant Flexural Capacities:
A21: s/n | B21: Main Reinforcement | E21: Additional Reinforcement | H21: As used | I21: Flexural Strength | J21: % As Check
A22: 1 | B22: 6.6667 | C22: T | D22: 32 | E22: 6.6667 | F22: T | G22: 32 | H22: =PI()*D22*D22/4*B22+PI()*G22*G22*E22/4 -> 10723.35654 | I22: 2455.212627
A23: 2 | B23: 0 | C23: T | D23: 20 | E23: 0 | F23: T | G23: 10 | H23: =PI()*D23*D23/4*B23+PI()*G23*G23*E23/4 -> 0 | I23: 0 | J23: Less than min.
A24: 3 | B24: 0 | C24: T | D24: 25 | E24: 0 | F24: T | G24: 10 | H24: 0 | I24: 0 | J24: Less than min.
A25: 4 | B25: 0 | C25: T | D25: 25 | E25: 0 | F25: T | G25: 25 | H25: 0 | I25: 0 | J25: Less than min.
A26: 5 | B26: 0 | C26: T | D26: 25 | E26: 0 | F26: T | G26: 25 | H26: 0 | I26: 0 | J26: Less than min.
A27: 6 | B27: 0 | C27: T | D27: 25 | E27: 0 | F27: T | G27: 25 | H27: 0 | I27: 0 | J27: Less than min.
A28: 7 | B28: 0 | C28: T | D28: 32 | E28: 0 | F28: T | G28: 16 | H28: 0 | I28: 0 | J28: Less than min.
A29: 8 | B29: 0 | C29: T | D29: 32 | E29: 0 | F29: T | G29: 25 | H29: 0 | I29: 0 | J29: Less than min.
A30: 9 | B30: 0 | C30: T | D30: 32 | E30: 0 | F30: T | G30: 25 | H30: 0 | I30: 0 | J30: Less than min.
A31: 10 | B31: 0 | C31: T | D31: 32 | E31: 0 | F31: T | G31: 25 | H31: 0 | I31: 0 | J31: Less than min.
A32: 11 | B32: 0 | C32: T | D32: 32 | E32: 0 | F32: T | G32: 32 | H32: 0 | I32: 0 | J32: Less than min.
A33: 12 | B33: 0 | C33: T | D33: 32 | E33: 0 | F33: T | G33: 32 | H33: 0 | I33: 0 | J33: Less than min.
A34: 13 | B34: 0 | C34: T | D34: 32 | E34: 0 | F34: T | G34: 32 | H34: 0 | I34: 0 | J34: Less than min.
A35: 14 | B35: 0 | C35: T | D35: 32 | E35: 0 | F35: T | G35: 32 | H35: 0 | I35: 0 | J35: Less than min.
A36: 15 | B36: 0 | C36: T | D36: 10 | E36: 0 | F36: T | G36: 10 | H36: 0 | I36: 0 | J36: Less than min.
A37: 16 | B37: 0 | C37: T | D37: 10 | E37: 0 | F37: T | G37: 10 | H37: 0 | I37: 0 | J37: Less than min.
A38: 17 | B38: 0 | C38: T | D38: 10 | E38: 0 | F38: T | G38: 10 | H38: 0 | I38: 0 | J38: Less than min.
A39: 18 | B39: 0 | C39: T | D39: 10 | E39: 0 | F39: T | G39: 10 | H39: 0 | I39: 0 | J39: Less than min.
A40: 19 | B40: 0 | C40: T | D40: 10 | E40: 0 | F40: T | G40: 10 | H40: 0 | I40: 0 | J40: Less than min.
A41: 20 | B41: 0 | C41: T | D41: 32 | E41: 0 | F41: T | G41: 10 | H41: 0 | I41: 0 | J41: Less than min.
A43: Beam Shear Strength
B45: Shear reduction factor f= | E45: 0.75
B46: Stirrups used | D46: 0 | E46: @ | F46: 150 | H46: No. of branches = | J46: 2
B47: Vc = | C47: =0.17*B8*G10*B4^0.5/1000 -> 404.7999506 | D47: KN
B48: Vs = | C48: =PI()*D46^2/4*J46*B5*G10/F46/1000 -> 0 | D48: KN | F48: Vsmax = | G48: =0.66*B8*G10*B4^0.5/1000 -> 1571.576279 | H48: KN
B49: fVn = | C49: =E45*(C47+MIN(C48,G48)) -> 303.5999629 | D49: KN
B50: Vu = | C50: 609 | D50: KN | E50: =IF(C50<=C49,"< Vn ---- SAFE","> Vn ---- UNSAFE") -> > Vn ---- UNSAFE

Sheet Sheet2
A1: fc' | B1: b | E1: fc' | I1: fy | M1: Bar Diameter | Q1: Beam Flexural Strength | R1: BEAM | S1: 2
A2: 17 | B2: 0.85 | D2: 1 | E2: 24 | F2: 2 | H2: 1 | I2: 360 | J2: 2 | L2: 1 | M2: 8 | N2: 2 | P2: =PI()*Main!C13*Main!C13/4*Main!A13 -> 1005.309649 | Q2: Slab Flexural Strength | R2: SLAB / FOOTING
A3: 18 | B3: 0.85 | D3: 2 | E3: 28 | F3: =LOOKUP(F2,D2:D10,E2:E10) -> 28 | H3: 2 | I3: 420 | J3: =LOOKUP(J2,H2:H4,I2:I4) -> 420 | L3: 2 | M3: 10 | N3: =LOOKUP(N2,L2:L12,M2:M12) -> 10
A4: 19 | B4: 0.85 | D4: 3 | E4: 32 | H4: 3 | I4: 460 | L4: 3 | M4: 12
A5: 20 | B5: 0.85 | D5: 4 | E5: 36 | L5: 4 | M5: 14
A6: 21 | B6: 0.85 | D6: 5 | E6: 40 | L6: 5 | M6: 16
A7: 22 | B7: 0.85 | D7: 6 | E7: 45 | L7: 6 | M7: 18
A8: 23 | B8: 0.85 | D8: 7 | E8: 50 | L8: 7 | M8: 20
A9: 24 | B9: 0.85 | D9: 8 | E9: 55 | L9: 8 | M9: 22
A10: 25 | B10: 0.85 | D10: 9 | E10: 60 | L10: 9 | M10: 25
A11: 26 | B11: 0.85 | L11: 10 | M11: 28
A12: 27 | B12: 0.85 | L12: 11 | M12: 32
A13: 28 | B13: 0.85
A14: 29 | B14: =B13-(A14-A13)/7*0.05 -> 0.8428571429
A15: 30 | B15: =B14-(A15-A14)/7*0.05 -> 0.8357142857
A16: 31 | B16: 0.8285714286
A17: 32 | B17: 0.8214285714
A18: 33 | B18: 0.8142857143
A19: 34 | B19: 0.8071428571
A20: 35 | B20: 0.8
A21: 36 | B21: 0.7928571429
A22: 37 | B22: 0.7857142857
A23: 38 | B23: 0.7785714286
A24: 39 | B24: 0.7714285714
A25: 40 | B25: 0.7642857143
A26: 41 | B26: 0.7571428571
A27: 42 | B27: 0.75
A28: 43 | B28: 0.7428571429
A29: 44 | B29: 0.7357142857
A30: 45 | B30: 0.7285714286
A31: 46 | B31: 0.7214285714
A32: 47 | B32: 0.7142857143
A33: 48 | B33: 0.7071428571
A34: 49 | B34: 0.7
A35: 50 | B35: 0.6928571429
A36: 51 | B36: 0.6857142857
A37: 52 | B37: 0.6785714286
A38: 53 | B38: 0.6714285714
A39: 54 | B39: 0.6642857143
A40: 55 | B40: 0.6571428571
A41: 56 | B41: 0.65
A42: 57 | B42: 0.65
A43: 58 | B43: 0.65
A44: 59 | B44: 0.65
A45: 60 | B45: 0.65
A46: 61 | B46: 0.65
A47: 62 | B47: 0.65
A48: 63 | B48: 0.65
A49: 64 | B49: 0.65
A50: 65 | B50: 0.65

Sheet Revision Log
A1: Revisions Log
A3: RevisionNo. | B3: Date | C3: Description
A4: 00 | B4: 2008-12-31 | C4: First release.
A5: 01 | B5: 2009-01-04 | C5: File saved as xlsm (Macros enabled) and ACI refernce for min. persentage of steel added.
A6: 02 | B6: 2009-02-16 | C6: Macro has been ammended to correctly copy the results from the solver.
A7: 03 | B7: 2009-05-05 | C7: Differentiate between Beam and slab in the title and min. percentage of steel
A8: 4 | B8: 2012 | C8: Shear reinforcement calculations added
A9: 5 | B9: 2009-10-09 | C9: As min updated with the value of 1.3 As req & shrinkage reinf. To be w.r.t. concrete gross area
